[Event "*** Titled Tuesday Blitz"]
[Site "Chess.com"]
[Date "2020.05.19"]
[Round "7"]
[White "1g41-0"]
[Black "ChessBitl"]
[Result "0-1"]
[WhiteElo "2519"]
[BlackElo "2360"]
[TimeControl "180+1"]
[EndTime "13:18:13 PDT"]
[Termination "ChessBitl won by resignation"]

1. e4 {[%clk 0:03:00.9]} 1... c5 {[%clk 0:02:59.5]} 2. Nf3 {[%clk 0:03:01.2]}
2... Nc6 {[%clk 0:02:59.8]} 3. Bb5 {[%clk 0:03:00.8]} 3... Qc7 {[%clk
0:02:58.4]} 4. O-O {[%clk 0:02:58]} 4... e6 {[%clk 0:02:56.9]} 5. Nc3 {[%clk
0:02:56.2]} 5... a6 {[%clk 0:02:56.6]} 6. Bxc6 {[%clk 0:02:56.1]} 6... Qxc6
{[%clk 0:02:57.2]} 7. d4 {[%clk 0:02:56.3]} 7... cxd4 {[%clk 0:02:57.5]} 8. Nxd4
{[%clk 0:02:57.2]} 8... Qc7 {[%clk 0:02:58.1]} 9. Qf3 {[%clk 0:02:55.4]} 9...
Nf6 {[%clk 0:02:55.5]} 10. Bf4 {[%clk 0:02:45.6]} 10... d6 {[%clk 0:02:53.7]}
11. Bg3 {[%clk 0:02:34.8]} 11... Be7 {[%clk 0:02:52.4]} 12. Rfe1 {[%clk
0:02:33]} 12... O-O {[%clk 0:02:47.4]} 13. e5 {[%clk 0:02:32.8]} 13... dxe5
{[%clk 0:02:47.5]} 14. Bxe5 {[%clk 0:02:33.7]} 14... Qb6 {[%clk 0:02:47.2]} 15.
Qg3 {[%clk 0:02:21.4]} 15... Bd7 {[%clk 0:02:36.3]} 16. Ne4 {[%clk 0:02:17.2]}
16... Kh8 {[%clk 0:02:35.8]} 17. Qh4 {[%clk 0:02:04.5]} 17... Nd5 {[%clk
0:02:20.6]} 18. Qh5 {[%clk 0:01:50.8]} 18... f6 {[%clk 0:02:17.6]} 19. Bg3
{[%clk 0:01:41]} 19... Qxd4 {[%clk 0:02:14]} 20. c3 {[%clk 0:01:36.3]} 20... Qb6
{[%clk 0:02:08.6]} 21. c4 {[%clk 0:01:34]} 21... Nb4 {[%clk 0:02:04.6]} 22. c5
{[%clk 0:01:33.1]} 22... Qc6 {[%clk 0:02:02.8]} 23. Rad1 {[%clk 0:01:31.3]}
23... e5 {[%clk 0:02:00.7]} 24. a3 {[%clk 0:01:28.1]} 24... Nc2 {[%clk
0:01:59.7]} 25. Rf1 {[%clk 0:01:24.3]} 25... Nd4 {[%clk 0:01:52.8]} 26. Nc3
{[%clk 0:01:17.6]} 26... Bf5 {[%clk 0:01:47.9]} 27. f4 {[%clk 0:01:12.5]} 27...
Bg6 {[%clk 0:01:42.8]} 28. Qh3 {[%clk 0:01:09.7]} 28... Bxc5 {[%clk 0:01:41.3]}
29. Kh1 {[%clk 0:01:08.5]} 29... exf4 {[%clk 0:01:35.1]} 30. Bxf4 {[%clk
0:01:09.4]} 30... Rad8 {[%clk 0:01:28]} 31. b4 {[%clk 0:01:08]} 31... Bb6 {[%clk
0:01:22.8]} 32. Rc1 {[%clk 0:01:03.6]} 32... Qe6 {[%clk 0:01:20.9]} 33. Rfe1
{[%clk 0:01:01.7]} 33... Qxh3 {[%clk 0:01:19.9]} 34. gxh3 {[%clk 0:01:02.6]} 0-1

[Event "*** Titled Tuesday Blitz"]
[Site "Chess.com"]
[Date "2020.05.19"]
[Round "7"]
[White "Gerasimenyuk_Miha"]
[Black "Azatic"]
[Result "1-0"]
[WhiteElo "2401"]
[BlackElo "2607"]
[TimeControl "180+1"]
[EndTime "13:18:26 PDT"]
[Termination "Gerasimenyuk_Miha won by resignation"]

1. d4 {[%clk 0:03:00.9]} 1... Nf6 {[%clk 0:02:59.9]} 2. Nf3 {[%clk 0:03:01.4]}
2... g6 {[%clk 0:02:59.4]} 3. Bg5 {[%clk 0:03:01.8]} 3... Bg7 {[%clk 0:02:59.4]}
4. e3 {[%clk 0:03:02.1]} 4... O-O {[%clk 0:02:59.2]} 5. Nbd2 {[%clk 0:03:02.2]}
5... d6 {[%clk 0:02:59.4]} 6. Bd3 {[%clk 0:03:02.1]} 6... Nbd7 {[%clk
0:02:59.1]} 7. c3 {[%clk 0:03:02.3]} 7... b6 {[%clk 0:02:59.2]} 8. h4 {[%clk
0:03:02.7]} 8... h6 {[%clk 0:02:57]} 9. h5 {[%clk 0:03:02.9]} 9... hxg5 {[%clk
0:02:28]} 10. hxg6 {[%clk 0:03:02.7]} 10... fxg6 {[%clk 0:02:26.9]} 11. Bxg6
{[%clk 0:03:02.2]} 11... e5 {[%clk 0:02:03.8]} 12. dxe5 {[%clk 0:03:01]} 12...
Nd5 {[%clk 0:01:57.3]} 13. Bh7+ {[%clk 0:02:44.8]} 13... Kf7 {[%clk 0:01:56.7]}
14. e6+ {[%clk 0:02:39.1]} 14... Kxe6 {[%clk 0:01:53.3]} 15. Ne4 {[%clk
0:02:36.8]} 15... Bf6 {[%clk 0:01:41.7]} 16. Bf5+ {[%clk 0:02:12.3]} 16... Kxf5
{[%clk 0:01:25.6]} 17. Qxd5+ {[%clk 0:02:11.5]} 17... Ne5 {[%clk 0:01:25.8]} 18.
Qxa8 {[%clk 0:02:02.6]} 18... c6 {[%clk 0:00:47.8]} 19. Nxe5 {[%clk 0:01:54.4]}
19... Bxe5 {[%clk 0:00:37.8]} 20. Qxc6 {[%clk 0:01:52.9]} 20... Be6 {[%clk
0:00:34.9]} 21. O-O-O {[%clk 0:01:45.4]} 21... Bd7 {[%clk 0:00:12.3]} 22. Nxd6+
{[%clk 0:01:40.9]} 22... Bxd6 {[%clk 0:00:11.2]} 23. Qxd6 {[%clk 0:01:41.7]} 1-0

[Event "*** Titled Tuesday Blitz"]
[Site "Chess.com"]
[Date "2020.05.19"]
[Round "7"]
[White "SergioGarciaFuentes"]
[Black "luizwas"]
[Result "1-0"]
[WhiteElo "2121"]
[BlackElo "1816"]
[TimeControl "180+1"]
[EndTime "13:18:26 PDT"]
[Termination "SergioGarciaFuentes won by checkmate"]

1. e4 {[%clk 0:03:00.9]} 1... e6 {[%clk 0:03:00.2]} 2. d3 {[%clk 0:02:54.4]}
2... d5 {[%clk 0:03:00]} 3. Nd2 {[%clk 0:02:54.9]} 3... dxe4 {[%clk 0:02:59.2]}
4. dxe4 {[%clk 0:02:54.1]} 4... Nf6 {[%clk 0:02:59.7]} 5. Ngf3 {[%clk
0:02:51.4]} 5... Nc6 {[%clk 0:02:57.8]} 6. Bb5 {[%clk 0:02:41.7]} 6... Bd7
{[%clk 0:02:54.1]} 7. O-O {[%clk 0:02:41]} 7... Bc5 {[%clk 0:02:52]} 8. Qe2
{[%clk 0:02:37.2]} 8... a6 {[%clk 0:02:51.2]} 9. Bc4 {[%clk 0:02:11.8]} 9... e5
{[%clk 0:02:36.7]} 10. c3 {[%clk 0:02:06.9]} 10... Bg4 {[%clk 0:02:35.1]} 11. h3
{[%clk 0:02:05]} 11... Bh5 {[%clk 0:02:33.6]} 12. Rd1 {[%clk 0:02:02.8]} 12...
Qe7 {[%clk 0:02:32.8]} 13. Nf1 {[%clk 0:02:00.4]} 13... O-O {[%clk 0:02:26.2]}
14. Ng3 {[%clk 0:01:59.6]} 14... Bg6 {[%clk 0:02:23.2]} 15. Nh4 {[%clk
0:01:44.3]} 15... Nxe4 {[%clk 0:02:06.7]} 16. Nxe4 {[%clk 0:01:34.7]} 16...
Bxf2+ {[%clk 0:01:40.8]} 17. Nxf2 {[%clk 0:01:15.8]} 17... Qxh4 {[%clk
0:01:38.2]} 18. Bd5 {[%clk 0:01:13.6]} 18... Rad8 {[%clk 0:01:34.8]} 19. Be3
{[%clk 0:01:10.4]} 19... Rd6 {[%clk 0:01:16.9]} 20. Bc5 {[%clk 0:01:02.7]} 20...
Rfd8 {[%clk 0:01:06.4]} 21. Bxd6 {[%clk 0:01:02]} 21... Rxd6 {[%clk 0:01:07.3]}
22. Bf3 {[%clk 0:01:02]} 22... Rf6 {[%clk 0:01:00.1]} 23. Bxc6 {[%clk
0:00:50.8]} 23... bxc6 {[%clk 0:00:59.4]} 24. Rd8# {[%clk 0:00:49.5]} 1-0

[Event "*** Titled Tuesday Blitz"]
[Site "Chess.com"]
[Date "2020.05.19"]
[Round "7"]
[White "SamuelGhimpu2003"]
[Black "BernardoRoselli"]
[Result "1-0"]
[WhiteElo "2602"]
[BlackElo "2456"]
[TimeControl "180+1"]
[EndTime "13:18:28 PDT"]
[Termination "SamuelGhimpu2003 won by resignation"]

1. e4 {[%clk 0:02:59.6]} 1... c5 {[%clk 0:02:59.1]} 2. Nf3 {[%clk 0:02:58.6]}
2... e6 {[%clk 0:02:58.9]} 3. d4 {[%clk 0:02:59.5]} 3... cxd4 {[%clk 0:02:59.2]}
4. Nxd4 {[%clk 0:03:00.4]} 4... Nf6 {[%clk 0:02:59.6]} 5. Nc3 {[%clk 0:03:00.7]}
5... Nc6 {[%clk 0:02:59.6]} 6. Nxc6 {[%clk 0:03:00.8]} 6... bxc6 {[%clk
0:02:59.1]} 7. e5 {[%clk 0:03:01.7]} 7... Nd5 {[%clk 0:02:59.5]} 8. Ne4 {[%clk
0:03:02]} 8... Qc7 {[%clk 0:03:00]} 9. f4 {[%clk 0:03:02]} 9... Qa5+ {[%clk
0:03:00.1]} 10. Bd2 {[%clk 0:02:58.5]} 10... Qb6 {[%clk 0:02:59.8]} 11. c3
{[%clk 0:02:59.1]} 11... Be7 {[%clk 0:02:57.9]} 12. Bd3 {[%clk 0:02:56.8]} 12...
Rb8 {[%clk 0:02:55.8]} 13. Qe2 {[%clk 0:02:36.8]} 13... a5 {[%clk 0:02:53.7]}
14. b3 {[%clk 0:02:29.6]} 14... f5 {[%clk 0:02:48.9]} 15. exf6 {[%clk 0:02:26]}
15... gxf6 {[%clk 0:02:48.2]} 16. g4 {[%clk 0:02:20.9]} 16... h5 {[%clk
0:02:38.2]} 17. g5 {[%clk 0:02:17.9]} 17... f5 {[%clk 0:02:38.1]} 18. Ng3 {[%clk
0:02:17.9]} 18... h4 {[%clk 0:02:35.9]} 19. Nh5 {[%clk 0:02:18.1]} 19... Kd8
{[%clk 0:02:27.1]} 20. Kf1 {[%clk 0:02:09]} 20... c5 {[%clk 0:02:14.3]} 21. Rg1
{[%clk 0:02:02.7]} 21... Bb7 {[%clk 0:02:13.1]} 22. Qe5 {[%clk 0:01:53.3]} 22...
Rxh5 {[%clk 0:01:57.6]} 23. Qxb8+ {[%clk 0:01:53.6]} 23... Bc8 {[%clk
0:01:57.4]} 24. Qxb6+ {[%clk 0:01:54.5]} 24... Nxb6 {[%clk 0:01:56.5]} 25. c4
{[%clk 0:01:52.9]} 25... Ke8 {[%clk 0:01:50.3]} 26. Bxa5 {[%clk 0:01:52.1]}
26... Na8 {[%clk 0:01:50.4]} 27. a4 {[%clk 0:01:46.4]} 27... Bd6 {[%clk
0:01:47.2]} 28. Bd2 {[%clk 0:01:45]} 28... Nc7 {[%clk 0:01:47]} 29. a5 {[%clk
0:01:44.5]} 29... Na6 {[%clk 0:01:47.1]} 30. Ke2 {[%clk 0:01:42]} 30... Kf7
{[%clk 0:01:46.8]} 31. g6+ {[%clk 0:01:40]} 31... Kg8 {[%clk 0:01:45.4]} 32. b4
{[%clk 0:01:28.6]} 32... cxb4 {[%clk 0:01:39.2]} 33. c5 {[%clk 0:01:29.5]} 33...
Nxc5 {[%clk 0:01:39.2]} 34. a6 {[%clk 0:01:29.7]} 34... Nxd3 {[%clk 0:01:38.4]}
35. Kxd3 {[%clk 0:01:30.6]} 35... e5 {[%clk 0:01:03.9]} 36. a7 {[%clk
0:01:28.1]} 36... e4+ {[%clk 0:01:02.3]} 37. Kc4 {[%clk 0:01:26.3]} 37... Bb7
{[%clk 0:01:01.5]} 38. a8=Q+ {[%clk 0:01:25.4]} 38... Bxa8 {[%clk 0:01:01.7]}
39. Rxa8+ {[%clk 0:01:26.1]} 1-0

[Event "*** Titled Tuesday Blitz"]
[Site "Chess.com"]
[Date "2020.05.19"]
[Round "7"]
[White "SketchyMoves"]
[Black "TigranMukhutdinov"]
[Result "1-0"]
[WhiteElo "2639"]
[BlackElo "2473"]
[TimeControl "180+1"]
[EndTime "13:18:36 PDT"]
[Termination "SketchyMoves won by resignation"]

1. b3 {[%clk 0:03:00.9]} 1... e5 {[%clk 0:02:59.7]} 2. Bb2 {[%clk 0:03:00.8]}
2... Nc6 {[%clk 0:03:00.4]} 3. e3 {[%clk 0:03:00.9]} 3... Nf6 {[%clk 0:03:01]}
4. Nf3 {[%clk 0:03:01]} 4... d6 {[%clk 0:03:00]} 5. d4 {[%clk 0:03:00.8]} 5...
exd4 {[%clk 0:02:59.4]} 6. Nxd4 {[%clk 0:03:01.7]} 6... Nxd4 {[%clk 0:02:59.4]}
7. Qxd4 {[%clk 0:03:01]} 7... Be7 {[%clk 0:03:00]} 8. Nc3 {[%clk 0:03:01.4]}
8... O-O {[%clk 0:02:59.9]} 9. Nd5 {[%clk 0:02:57.7]} 9... Be6 {[%clk
0:02:57.2]} 10. Nxe7+ {[%clk 0:02:57.4]} 10... Qxe7 {[%clk 0:02:58.1]} 11. Bd3
{[%clk 0:02:50.6]} 11... h6 {[%clk 0:02:47.4]} 12. O-O-O {[%clk 0:02:40.3]}
12... a5 {[%clk 0:02:40.3]} 13. g4 {[%clk 0:02:28.2]} 13... Ne8 {[%clk
0:02:33.4]} 14. Qe4 {[%clk 0:02:17.3]} 14... f5 {[%clk 0:02:28.8]} 15. gxf5
{[%clk 0:02:16]} 15... Rxf5 {[%clk 0:02:29.7]} 16. Bc4 {[%clk 0:01:44.4]} 16...
d5 {[%clk 0:01:58.7]} 17. Rxd5 {[%clk 0:01:22.4]} 17... Rxd5 {[%clk 0:01:49.3]}
18. Bxd5 {[%clk 0:01:16.6]} 18... Ra6 {[%clk 0:01:49.4]} 19. Rg1 {[%clk
0:01:11]} 19... Nf6 {[%clk 0:01:49.6]} 20. Bxe6+ {[%clk 0:00:50.5]} 20... Rxe6
{[%clk 0:01:49.9]} 21. Qxb7 {[%clk 0:00:50.6]} 21... Rxe3 {[%clk 0:01:45]} 22.
Qc8+ {[%clk 0:00:40.1]} 22... Kh7 {[%clk 0:01:43.9]} 23. Qf5+ {[%clk 0:00:40]}
23... Kh8 {[%clk 0:01:15.8]} 24. Bxf6 {[%clk 0:00:39.7]} 1-0

[Event "*** Titled Tuesday Blitz"]
[Site "Chess.com"]
[Date "2020.05.19"]
[Round "7"]
[White "Dr-Bassem"]
[Black "Eltaj_Safarli"]
[Result "0-1"]
[WhiteElo "2785"]
[BlackElo "3000"]
[TimeControl "180+1"]
[EndTime "13:18:42 PDT"]
[Termination "Eltaj_Safarli won on time"]

1. e4 {[%clk 0:03:00.9]} 1... e5 {[%clk 0:02:56.8]} 2. Nf3 {[%clk 0:03:01.3]}
2... Nc6 {[%clk 0:02:57.7]} 3. Bc4 {[%clk 0:03:01.1]} 3... Bc5 {[%clk
0:02:57.2]} 4. O-O {[%clk 0:03:00.1]} 4... Nf6 {[%clk 0:02:57]} 5. d3 {[%clk
0:03:00.5]} 5... h6 {[%clk 0:02:56.8]} 6. c3 {[%clk 0:02:59.7]} 6... d6 {[%clk
0:02:56.3]} 7. Re1 {[%clk 0:02:58.7]} 7... O-O {[%clk 0:02:55.7]} 8. Nbd2 {[%clk
0:02:57.6]} 8... Re8 {[%clk 0:02:54.5]} 9. Nf1 {[%clk 0:02:56.4]} 9... Be6
{[%clk 0:02:53.9]} 10. Bxe6 {[%clk 0:02:55.6]} 10... Rxe6 {[%clk 0:02:47.9]} 11.
d4 {[%clk 0:02:48.7]} 11... exd4 {[%clk 0:02:48.8]} 12. cxd4 {[%clk 0:02:48.7]}
12... Bb4 {[%clk 0:02:49.1]} 13. d5 {[%clk 0:02:36.9]} 13... Bxe1 {[%clk
0:02:49.3]} 14. Nxe1 {[%clk 0:02:20.5]} 14... Rxe4 {[%clk 0:02:44.2]} 15. dxc6
{[%clk 0:02:20.6]} 15... bxc6 {[%clk 0:02:45.1]} 16. Ng3 {[%clk 0:02:17.5]}
16... Re8 {[%clk 0:02:43.2]} 17. Nf3 {[%clk 0:02:13.9]} 17... Qd7 {[%clk
0:02:42.8]} 18. h3 {[%clk 0:02:11.7]} 18... Ne4 {[%clk 0:02:42.8]} 19. Nxe4
{[%clk 0:02:04.7]} 19... Rxe4 {[%clk 0:02:43.7]} 20. Be3 {[%clk 0:02:04.7]}
20... a5 {[%clk 0:02:39.7]} 21. Rc1 {[%clk 0:02:02.9]} 21... a4 {[%clk
0:02:36.6]} 22. Qc2 {[%clk 0:01:08.4]} 22... Rb4 {[%clk 0:02:36.4]} 23. a3
{[%clk 0:01:08.7]} 23... Rb5 {[%clk 0:02:34.9]} 24. Qxc6 {[%clk 0:00:47.3]}
24... Qxc6 {[%clk 0:02:35.8]} 25. Rxc6 {[%clk 0:00:47.7]} 25... Rxb2 {[%clk
0:02:36.2]} 26. Rxc7 {[%clk 0:00:45.1]} 26... Rb3 {[%clk 0:02:36.3]} 27. Bc1
{[%clk 0:00:39.5]} 27... Rd3 {[%clk 0:02:36.5]} 28. Kh2 {[%clk 0:00:33.6]} 28...
Rb8 {[%clk 0:02:34.6]} 29. h4 {[%clk 0:00:26.4]} 29... Rbb3 {[%clk 0:02:21.2]}
30. Rc4 {[%clk 0:00:24.1]} 30... Rbc3 {[%clk 0:02:18.6]} 31. Rxc3 {[%clk
0:00:22.6]} 31... Rxc3 {[%clk 0:02:19.5]} 32. Bb2 {[%clk 0:00:23.1]} 32... Rc2
{[%clk 0:02:19.8]} 33. Bd4 {[%clk 0:00:19.1]} 33... Ra2 {[%clk 0:02:20.1]} 34.
Kg3 {[%clk 0:00:11.9]} 34... Rxa3 {[%clk 0:02:20.4]} 35. Kf4 {[%clk 0:00:12.8]}
35... Rb3 {[%clk 0:02:17.1]} 36. Nd2 {[%clk 0:00:10.9]} 36... Rb4 {[%clk
0:02:15.7]} 37. Ke3 {[%clk 0:00:11.3]} 37... a3 {[%clk 0:02:13.3]} 38. Bc3
{[%clk 0:00:09.1]} 38... a2 {[%clk 0:02:13.4]} 0-1

[Event "*** Titled Tuesday Blitz"]
[Site "Chess.com"]
[Date "2020.05.19"]
[Round "7"]
[White "spela91"]
[Black "jcgs1030"]
[Result "1-0"]
[WhiteElo "2032"]
[BlackElo "2361"]
[TimeControl "180+1"]
[EndTime "13:18:43 PDT"]
[Termination "spela91 won by resignation"]

1. d4 {[%clk 0:03:00.9]} 1... Nf6 {[%clk 0:01:34.4]} 2. c4 {[%clk 0:02:58.1]}
2... e6 {[%clk 0:01:34.4]} 3. Nc3 {[%clk 0:02:57.6]} 3... d5 {[%clk 0:01:35.3]}
4. cxd5 {[%clk 0:02:56.9]} 4... exd5 {[%clk 0:01:36.2]} 5. Bg5 {[%clk
0:02:57.2]} 5... Be7 {[%clk 0:01:35.7]} 6. e3 {[%clk 0:02:57]} 6... c6 {[%clk
0:01:35.8]} 7. Bd3 {[%clk 0:02:57.4]} 7... Nbd7 {[%clk 0:01:36]} 8. Nge2 {[%clk
0:02:57.7]} 8... Nf8 {[%clk 0:01:36.4]} 9. Qc2 {[%clk 0:02:56.1]} 9... Ne6
{[%clk 0:01:36.8]} 10. Bh4 {[%clk 0:02:55.7]} 10... g6 {[%clk 0:01:37.3]} 11.
O-O {[%clk 0:02:52.4]} 11... Ng7 {[%clk 0:01:37.2]} 12. f3 {[%clk 0:02:44.6]}
12... Nf5 {[%clk 0:01:28.7]} 13. Bf2 {[%clk 0:02:43.8]} 13... Nd6 {[%clk
0:01:27.6]} 14. e4 {[%clk 0:02:27]} 14... dxe4 {[%clk 0:01:10.3]} 15. fxe4
{[%clk 0:02:27]} 15... Nd7 {[%clk 0:01:09.1]} 16. e5 {[%clk 0:02:24.2]} 16...
Nf5 {[%clk 0:01:03.8]} 17. Bxf5 {[%clk 0:02:22.7]} 17... gxf5 {[%clk 0:01:04.7]}
18. Ng3 {[%clk 0:02:06.2]} 18... f4 {[%clk 0:01:00.1]} 19. Nf5 {[%clk
0:01:51.9]} 19... Nb6 {[%clk 0:00:54]} 20. Ng7+ {[%clk 0:01:22.9]} 20... Kf8
{[%clk 0:00:52.6]} 21. Nh5 {[%clk 0:01:23.1]} 21... Bg5 {[%clk 0:00:50.6]} 22.
Ne4 {[%clk 0:01:15.5]} 22... Bg4 {[%clk 0:00:46.3]} 23. Nhf6 {[%clk 0:01:10.4]}
23... Bf5 {[%clk 0:00:43.2]} 24. Qc5+ {[%clk 0:01:01.4]} 24... Qe7 {[%clk
0:00:40]} 25. Qxe7+ {[%clk 0:00:59.8]} 25... Kxe7 {[%clk 0:00:40.2]} 26. Nxg5
{[%clk 0:00:59.9]} 1-0

[Event "*** Titled Tuesday Blitz"]
[Site "Chess.com"]
[Date "2020.05.19"]
[Round "7"]
[White "novocane"]
[Black "BabyBoss31"]
[Result "0-1"]
[WhiteElo "2212"]
[BlackElo "2338"]
[TimeControl "180+1"]
[EndTime "13:18:45 PDT"]
[Termination "BabyBoss31 won by resignation"]

1. d4 {[%clk 0:03:00.9]} 1... d5 {[%clk 0:02:59.5]} 2. c4 {[%clk 0:03:00.4]}
2... dxc4 {[%clk 0:03:00.4]} 3. e4 {[%clk 0:03:00.1]} 3... Nc6 {[%clk
0:02:57.5]} 4. Nf3 {[%clk 0:02:53.3]} 4... Bg4 {[%clk 0:02:56.1]} 5. Bxc4 {[%clk
0:02:48.8]} 5... e6 {[%clk 0:02:49.7]} 6. Be3 {[%clk 0:02:42.6]} 6... Bxf3
{[%clk 0:02:49.5]} 7. gxf3 {[%clk 0:02:42.5]} 7... Qf6 {[%clk 0:02:47.4]} 8. Bb5
{[%clk 0:02:19.4]} 8... Bb4+ {[%clk 0:02:40.3]} 9. Nc3 {[%clk 0:02:18.7]} 9...
Ne7 {[%clk 0:02:37.8]} 10. e5 {[%clk 0:02:02.5]} 10... Qh4 {[%clk 0:02:33.9]}
11. Qb3 {[%clk 0:01:51]} 11... O-O-O {[%clk 0:02:27]} 12. O-O-O {[%clk
0:01:44.3]} 12... Nxd4 {[%clk 0:02:15.3]} 13. Bxd4 {[%clk 0:01:27.8]} 13... Rxd4
{[%clk 0:02:16.2]} 14. Ne4 {[%clk 0:01:12.8]} 14... Rhd8 {[%clk 0:02:09.7]} 15.
a3 {[%clk 0:00:40.9]} 15... Ba5 {[%clk 0:01:45.9]} 16. Rxd4 {[%clk 0:00:35.4]}
16... Rxd4 {[%clk 0:01:46.8]} 17. Rd1 {[%clk 0:00:35.5]} 17... Rxd1+ {[%clk
0:01:36.2]} 18. Qxd1 {[%clk 0:00:35.8]} 18... a6 {[%clk 0:01:37.1]} 19. Qd7+
{[%clk 0:00:20.4]} 19... Kb8 {[%clk 0:01:36.5]} 20. Bxa6 {[%clk 0:00:08.3]}
20... bxa6 {[%clk 0:01:28.8]} 21. Nc5 {[%clk 0:00:05.5]} 21... Qc4+ {[%clk
0:01:23.1]} 22. Kb1 {[%clk 0:00:05]} 22... Qxc5 {[%clk 0:01:23.3]} 23. Qd8+
{[%clk 0:00:05.1]} 23... Kb7 {[%clk 0:01:22.9]} 0-1

[Event "*** Titled Tuesday Blitz"]
[Site "Chess.com"]
[Date "2020.05.19"]
[Round "7"]
[White "WildTricks"]
[Black "temus_galaktionov"]
[Result "0-1"]
[WhiteElo "2544"]
[BlackElo "2701"]
[TimeControl "180+1"]
[EndTime "13:18:50 PDT"]
[Termination "temus_galaktionov won by resignation"]

1. Nf3 {[%clk 0:03:00.9]} 1... c6 {[%clk 0:03:00.9]} 2. g3 {[%clk 0:03:00.8]}
2... g6 {[%clk 0:03:01.8]} 3. Bg2 {[%clk 0:03:01.2]} 3... Bg7 {[%clk 0:03:02.6]}
4. O-O {[%clk 0:03:01.1]} 4... d6 {[%clk 0:03:03.5]} 5. d4 {[%clk 0:03:01.3]}
5... Nd7 {[%clk 0:03:04.4]} 6. c4 {[%clk 0:03:01.7]} 6... Ngf6 {[%clk
0:03:04.7]} 7. Nc3 {[%clk 0:03:02.1]} 7... O-O {[%clk 0:03:05.2]} 8. e4 {[%clk
0:03:02.2]} 8... e5 {[%clk 0:03:04.7]} 9. Re1 {[%clk 0:02:58.5]} 9... Qc7 {[%clk
0:03:04.2]} 10. h3 {[%clk 0:02:58]} 10... Re8 {[%clk 0:03:03.8]} 11. Be3 {[%clk
0:02:58.3]} 11... a5 {[%clk 0:03:03.5]} 12. b3 {[%clk 0:02:57.8]} 12... exd4
{[%clk 0:03:03.4]} 13. Nxd4 {[%clk 0:02:57.4]} 13... Nc5 {[%clk 0:02:56.1]} 14.
Qc2 {[%clk 0:02:56.5]} 14... Bd7 {[%clk 0:02:55.5]} 15. Rad1 {[%clk 0:02:56]}
15... Rad8 {[%clk 0:02:55]} 16. a3 {[%clk 0:02:54.2]} 16... Bc8 {[%clk
0:02:47.3]} 17. b4 {[%clk 0:02:44.6]} 17... axb4 {[%clk 0:02:48.2]} 18. axb4
{[%clk 0:02:45.5]} 18... Ne6 {[%clk 0:02:47.6]} 19. Nde2 {[%clk 0:02:44.9]}
19... b6 {[%clk 0:02:20.2]} 20. Na4 {[%clk 0:02:25.2]} 20... c5 {[%clk
0:02:13.8]} 21. b5 {[%clk 0:02:16.8]} 21... Bb7 {[%clk 0:02:09.5]} 22. Nac3
{[%clk 0:02:15.5]} 22... Ra8 {[%clk 0:02:08.5]} 23. Ra1 {[%clk 0:02:15.2]} 23...
Nf8 {[%clk 0:02:00.8]} 24. f3 {[%clk 0:02:05.4]} 24... N8d7 {[%clk 0:02:00.1]}
25. Rxa8 {[%clk 0:01:21.4]} 25... Rxa8 {[%clk 0:02:01]} 26. f4 {[%clk
0:01:19.8]} 26... Ra3 {[%clk 0:01:48.3]} 27. Bf2 {[%clk 0:01:19.6]} 27... Qb8
{[%clk 0:01:42.5]} 28. Rd1 {[%clk 0:01:16.9]} 28... h6 {[%clk 0:01:28.7]} 29.
Qb2 {[%clk 0:01:16.3]} 29... Ra5 {[%clk 0:01:25.5]} 30. Qd2 {[%clk 0:01:14.6]}
30... Bf8 {[%clk 0:01:24.7]} 31. g4 {[%clk 0:01:11]} 31... Qa8 {[%clk
0:01:22.2]} 32. Kh2 {[%clk 0:00:52.8]} 32... Nxe4 {[%clk 0:01:17.9]} 33. Qd3
{[%clk 0:00:38.2]} 33... Nxf2 {[%clk 0:01:15.5]} 0-1

[Event "*** Titled Tuesday Blitz"]
[Site "Chess.com"]
[Date "2020.05.19"]
[Round "7"]
[White "VladimirBugayev"]
[Black "larisakalinina"]
[Result "1-0"]
[WhiteElo "2252"]
[BlackElo "2015"]
[TimeControl "180+1"]
[EndTime "13:18:50 PDT"]
[Termination "VladimirBugayev won by checkmate"]

1. e4 {[%clk 0:03:00.9]} 1... c5 {[%clk 0:03:00.1]} 2. a3 {[%clk 0:02:57]} 2...
Nc6 {[%clk 0:02:58.1]} 3. b4 {[%clk 0:02:56.3]} 3... cxb4 {[%clk 0:02:59]} 4.
axb4 {[%clk 0:02:56.7]} 4... Nxb4 {[%clk 0:02:58.5]} 5. d4 {[%clk 0:02:57.1]}
5... d5 {[%clk 0:02:56.7]} 6. c3 {[%clk 0:02:57]} 6... Nc6 {[%clk 0:02:55]} 7.
exd5 {[%clk 0:02:57.4]} 7... Qxd5 {[%clk 0:02:54.8]} 8. Na3 {[%clk 0:02:57.9]}
8... Qd8 {[%clk 0:02:22.9]} 9. d5 {[%clk 0:02:39.7]} 9... Ne5 {[%clk 0:02:08.7]}
10. Nb5 {[%clk 0:02:04.9]} 10... a6 {[%clk 0:02:02.8]} 11. Bf4 {[%clk
0:02:04.4]} 11... Bg4 {[%clk 0:02:00.6]} 12. f3 {[%clk 0:01:58.8]} 12... axb5
{[%clk 0:01:56.2]} 13. Rxa8 {[%clk 0:01:48.4]} 13... Qxa8 {[%clk 0:01:57.1]} 14.
fxg4 {[%clk 0:01:23.2]} 14... Nc4 {[%clk 0:01:51.5]} 15. Nf3 {[%clk 0:01:23.1]}
15... Nf6 {[%clk 0:01:40]} 16. Be2 {[%clk 0:00:53.7]} 16... Nxg4 {[%clk
0:01:11.3]} 17. O-O {[%clk 0:00:52.1]} 17... Nge3 {[%clk 0:01:11]} 18. Bxe3
{[%clk 0:00:50]} 18... Nxe3 {[%clk 0:01:11.9]} 19. Bxb5+ {[%clk 0:00:49.8]}
19... Kd8 {[%clk 0:01:09.4]} 20. Qd4 {[%clk 0:00:48.7]} 20... Nxf1 {[%clk
0:01:01.6]} 21. Qb6+ {[%clk 0:00:48.1]} 21... Kc8 {[%clk 0:01:01.9]} 22. Ne5
{[%clk 0:00:48.2]} 22... Qa1 {[%clk 0:00:40.5]} 23. Bd7+ {[%clk 0:00:47.5]}
23... Kb8 {[%clk 0:00:39.9]} 24. Nc6+ {[%clk 0:00:48]} 24... Ka8 {[%clk
0:00:35.7]} 25. Qd8# {[%clk 0:00:48.4]} 1-0